bitfinex/quotes_SOLUSD_20250611
["timestamp","ask_amount","ask_price","bid_price","bid_amount"]
[1749680706070,55.2540521,159.84,159.82,10.0]
[1749680706272,22.99779585,159.83,159.81,10.0]
[1749680706576,26.0,159.79,159.76,10.0]
[1749680706756,22.99779585,159.77,159.76,10.0]
[1749680707074,6.2605647,159.73,159.71,10.0]
[1749680707275,22.99779585,159.72,159.7,10.0]
[1749680707626,52.47779585,159.71,159.7,10.0]
[1749680708069,29.48,159.71,159.7,10.0]
[1749680708268,52.47779585,159.71,159.7,10.0]
[1749680708484,52.47779585,159.71,159.69,10.0]
[1749680708786,22.99779585,159.7,159.68,10.0]
[1749680708952,52.45779585,159.69,159.68,10.0]
[1749680709152,58.71992873,159.69,159.65,10.0]
[1749680709355,48.99779585,159.66,159.64,10.0]
[1749680709663,26.0,159.66,159.65,10.0]
[1749680710280,78.45779585,159.66,159.65,10.0]
[1749680710493,78.45779585,159.66,159.64,10.0]
[1749680710658,55.46,159.66,159.65,10.0]
[1749680710857,78.45779585,159.66,159.65,10.0]
[1749680711285,84.72110538,159.66,159.65,10.0]
[1749680711863,32.26330953,159.66,159.65,10.0]
[1749680712059,6.26330953,159.66,159.65,10.0]
[1749680712480,29.26110538,159.66,159.65,10.0]
[1749680712885,6.26252505,159.68,159.65,10.0]
[1749680713066,6.26252505,159.68,159.67,10.0]
[1749680713067,29.2603209,159.68,159.67,10.0]
[1749680713271,22.99779585,159.69,159.67,10.0]
[1749680713478,6.26134869,159.71,159.7,10.0]
[1749680713697,29.25914454,159.71,159.7,10.0]
[1749680714195,6.26134869,159.71,159.7,10.0]
[1749680714368,29.25914454,159.71,159.7,10.0]
[1749680716192,6.26134869,159.71,159.7,10.0]
[1749680716496,29.25914454,159.71,159.7,10.0]
[1749680716668,6.26134869,159.71,159.7,10.0]
[1749680716880,22.99779585,159.73,159.72,10.0]
[1749680716881,6.2605647,159.73,159.72,10.0]
[1749680717503,6.26017278,159.74,159.72,10.0]
[1749680717671,6.26017278,159.74,159.73,10.0]
[1749680718776,29.25796863,159.74,159.73,10.0]
[1749680718982,29.25796863,159.74,159.72,10.0]
[1749680719221,6.26017278,159.74,159.72,10.0]
[1749680719511,6.26017278,159.74,159.63,121.31606157]
[1749680719512,6.26095667,159.72,159.7,10.0]
[1749680719717,6.26095667,159.72,159.71,10.0]
[1749680721017,29.25875252,159.72,159.69,10.0]
[1749680721221,22.99779585,159.7,159.69,10.0]
[1749680722010,29.25953661,159.7,159.69,10.0]
[1749680722634,6.26174076,159.7,159.69,10.0]
[1749680722807,29.25953661,159.7,159.69,10.0]
[1749680723510,49.77001607,159.75,159.69,10.0]
[1749680723693,6.26017278,159.74,159.73,10.0]
[1749680724007,44.90840058,159.74,159.73,10.0]
[1749680724385,21.91060473,159.74,159.73,10.0]
[1749680724596,44.90840058,159.74,159.73,10.0]
[1749680725199,21.91060473,159.74,159.73,10.0]
[1749680725398,44.90840058,159.74,159.73,10.0]
[1749680726306,21.91060473,159.74,159.73,10.0]
[1749680727013,6.26017278,159.74,159.73,10.0]
[1749680727808,6.26017278,159.74,159.73,32.99779585]
[1749680727992,15.64838549,159.77,159.76,10.0]
[1749680727993,6.2589973,159.77,159.76,10.0]
[1749680728194,4.6067539,159.77,159.76,10.0]
[1749680728516,4.60675184,159.77,159.76,32.99779585]
[1749680728715,6.25793137,159.8,159.79,10.0]
[1749680728928,10.86577668,159.8,159.79,10.0]
[1749680729106,10.86577662,159.8,159.79,10.0]
[1749680729415,10.86584877,159.8,159.79,10.0]
[1749680729623,6.25664768,159.83,159.79,10.0]
[1749680729804,6.25664768,159.83,159.81,10.0]
[1749680730010,4.60840708,159.82,159.81,10.0]
[1749680730212,4.60830682,159.82,159.81,10.0]
[1749680730414,6.25664768,159.83,159.81,10.0]
[1749680730415,29.25444353,159.83,159.81,10.0]
[1749680730895,22.99779585,159.82,159.81,10.0]
[1749680731203,27.60558837,159.82,159.81,10.0]
[1749680731411,22.99779585,159.82,159.81,10.0]
[1749680731812,4.60775777,159.82,159.81,10.0]
[1749680732119,33.86253253,159.82,159.81,10.0]
[1749680732325,29.25483501,159.82,159.81,10.0]
[1749680732533,33.86252687,159.82,159.81,10.0]
[1749680732700,29.25483501,159.82,159.81,10.0]
[1749680733330,6.25703916,159.82,159.81,10.0]
[1749680733502,10.86575891,159.82,159.81,10.0]
[1749680733700,10.86561895,159.82,159.81,10.0]
[1749680734022,10.865898,159.82,159.81,10.0]
[1749680734323,10.86590649,159.82,159.81,10.0]
[1749680734538,10.86601365,159.82,159.81,32.99779585]
[1749680734695,10.86641459,159.82,159.81,32.99779585]
[1749680734901,10.8664367,159.82,159.81,32.99779585]
[1749680735102,10.86623213,159.82,159.81,32.99779585]
[1749680735297,10.86623207,159.82,159.81,32.99779585]
[1749680735602,6.25703916,159.82,159.81,32.99779585]
[1749680735808,6.25703916,159.82,159.81,10.0]
[1749680736006,37.75204094,159.82,159.8,10.0]
[1749680736218,33.97133426,159.81,159.8,10.0]
[1749680736416,33.96981016,159.81,159.8,10.0]
[1749680736618,33.96981062,159.81,159.8,10.0]
[1749680736817,10.82979115,159.81,159.8,10.0]
[1749680737006,29.25522654,159.81,159.8,10.0]
[1749680737206,33.8281702,159.81,159.8,10.0]
[1749680737420,33.82778021,159.81,159.8,10.0]
[1749680738021,59.82753858,159.81,159.79,10.0]
[1749680738236,27.57010789,159.8,159.78,10.0]
[1749680738401,33.82798226,159.79,159.78,10.0]
[1749680738602,29.25600975,159.79,159.78,10.0]
[1749680739001,33.82756448,159.79,159.78,10.0]
[1749680739214,26.0,159.78,159.75,10.0]
[1749680739423,22.99779585,159.76,159.74,10.0]
[1749680739625,22.99779585,159.75,159.73,10.0]
[1749680739829,22.99779585,159.74,159.73,10.0]
[1749680741029,29.25796863,159.74,159.73,10.0]
[1749680745175,29.25796863,159.74,159.65,6.5672]
[1749680745176,61.22017278,159.74,159.7,10.0]
[1749680745307,77.0127663,159.74,159.73,10.0]
[1749680745514,99.86840058,159.74,159.73,10.0]
[1749680745905,47.91060473,159.74,159.73,10.0]
[1749680746107,21.91060473,159.74,159.73,10.0]
[1749680746720,44.90840058,159.74,159.73,10.0]
[1749680747419,21.91060473,159.74,159.72,10.0]
[1749680747720,22.99779585,159.73,159.72,10.0]
[1749680747925,29.25836055,159.73,159.72,10.0]
[1749680748239,44.9097723,159.73,159.7,10.0]
[1749680748421,22.99779585,159.71,159.7,10.0]
[1749680748620,22.99779585,159.71,159.69,10.0]
[1749680748825,22.99779585,159.71,159.64,1.6497]
[1749680748826,55.04,159.72,159.7,10.0]
[1749680749037,0.14216157,159.71,159.67,10.0]
[1749680749335,0.42648471,159.71,159.69,10.0]
[1749680749520,0.42648471,159.71,159.7,10.0]
[1749680750052,6.40351026,159.71,159.7,10.0]
[1749680750423,29.40130611,159.71,159.7,10.0]
[1749680750647,6.26134869,159.71,159.7,10.0]
[1749680750825,29.25914454,159.71,159.7,10.0]
[1749680760082,10.0,159.7,159.61,0.14216157]
[1749680760242,22.99779585,159.68,159.63,22.99779585]
[1749680760446,28.88,159.67,159.63,22.99779585]
[1749680760757,6.26330953,159.66,159.63,22.99779585]
[1749680761067,6.26330953,159.66,159.59,0.42648471]
[1749680761068,28.88,159.65,159.59,0.42648471]
[1749680761238,28.88,159.65,159.49,5.22607135]
[1749680761239,26.0,159.62,159.49,8.3003617]
[1749680761440,10.0,159.58,159.47,10.0]
[1749680761640,29.18,159.57,159.47,10.0]
[1749680761871,39.18,159.57,159.42,0.21324235]
[1749680762199,10.0,159.55,159.42,3.09776777]
[1749680762348,10.0,159.51,159.34,18.65547688]
[1749680762668,30.04,159.5,159.43,26.0]
[1749680762856,36.30968198,159.5,159.37,3.12312339]
[1749680763051,46.30968198,159.5,159.34,18.65547688]
[1749680763250,10.0,159.48,159.42,22.99779585]
[1749680763448,10.0,159.48,159.36,19.07613357]
[1749680763449,30.72,159.47,159.4,22.99779585]
[1749680763683,30.96,159.5,159.46,26.0]
[1749680763967,30.96,159.5,159.39,1.6184]
[1749680764168,10.0,159.53,159.39,1.6184]
[1749680764345,31.62,159.52,159.44,18.79181043]
[1749680764670,10.0,159.57,159.46,0.14216157]
[1749680764868,20.15964886,159.62,159.46,0.14216157]
[1749680764869,6.2665251,159.58,159.5,1.6335]
[1749680765074,43.24,159.57,159.5,1.6335]
[1749680765369,43.24,159.57,159.48,42.07392942]
[1749680765370,10.0,159.55,159.48,42.07392942]
[1749680765594,43.3,159.56,159.48,19.07613357]
[1749680765890,33.3,159.56,159.48,18.933972]
[1749680766181,22.99779585,159.54,159.49,0.14216157]
[1749680766497,16.26535955,159.61,159.54,0.42648471]
[1749680766771,10.0,159.62,159.58,18.64964886]
[1749680766974,36.0,159.65,159.58,18.64964886]
[1749680767290,10.0,159.65,159.58,19.07613357]
[1749680767451,33.24,159.65,159.61,23.13995742]
[1749680767774,22.99779585,159.63,159.58,18.64964886]
[1749680768080,22.99779585,159.59,159.54,19.07613357]
[1749680768255,33.28,159.58,159.54,42.07392942]
[1749680768454,33.28,159.58,159.54,19.07613357]
[1749680768648,33.28,159.58,159.54,42.07392942]
[1749680768843,33.28,159.58,159.54,19.07613357]
[1749680769050,33.28,159.58,159.54,0.14216157]
[1749680769250,62.54442984,159.58,159.54,0.14216157]
[1749680769554,62.54442984,159.58,159.54,0.28432314]
[1749680769769,39.54663399,159.58,159.54,23.28211899]
[1749680770159,33.28,159.58,159.55,41.78960628]
[1749680770364,33.3,159.6,159.57,23.28211899]
[1749680770665,33.3,159.6,159.57,0.28432314]
[1749680771351,22.99779585,159.58,159.36,37.49629612]
[1749680771672,49.56597871,159.6,159.54,0.14216157]
[1749680771977,10.0,159.59,159.54,0.14216157]
[1749680772154,22.99779585,159.58,159.54,0.14216157]
[1749680772473,10.0,159.59,159.54,0.28432314]
[1749680772687,62.56377456,159.6,159.54,23.42428056]
[1749680772864,62.56377456,159.6,159.56,0.28432314]
[1749680773057,55.23013911,159.6,159.43,1.82594235]
[1749680773258,22.99779585,159.56,159.52,18.64964886]
[1749680773457,33.18,159.55,159.53,0.14216157]
[1749680773661,33.18,159.54,159.53,0.28432314]
[1749680773861,33.18,159.54,159.53,0.14216157]
[1749680774056,33.18,159.54,159.49,18.64964886]
[1749680774476,33.18,159.54,159.52,0.14216157]
[1749680775060,22.99779585,159.53,159.44,18.64964886]
[1749680775278,22.99779585,159.5,159.45,22.99779585]
[1749680775570,56.13779585,159.49,159.45,18.64964886]
[1749680775778,33.14,159.49,159.47,0.28432314]
[1749680776173,33.14,159.49,159.44,44.64964886]
[1749680776368,33.14,159.49,159.48,22.99779585]
[1749680776570,10.0,159.58,159.5,0.42648471]
[1749680776900,22.99779585,159.55,159.5,23.42428056]
[1749680777054,29.26542355,159.55,159.5,23.42428056]
[1749680777254,22.99779585,159.54,159.5,0.42648471]
[1749680777457,33.24,159.53,159.5,0.28432314]
[1749680777750,22.99779585,159.52,159.47,0.14216157]
[1749680777953,33.22,159.51,159.47,0.14216157]
[1749680778260,56.21779585,159.51,159.44,18.64964886]
[1749680778473,22.99779585,159.5,159.45,23.42428056]
[1749680778662,56.21779585,159.51,159.45,23.42428056]
[1749680778881,22.99779585,159.48,159.44,18.64964886]
[1749680779175,33.34,159.47,159.45,0.28432314]
[1749680779550,33.34,159.47,159.43,1.6127]
[1749680779763,33.34,159.47,159.43,24.61049585]
[1749680779970,33.34,159.47,159.43,1.6127]
[1749680780170,33.34,159.47,159.42,42.07392942]
[1749680780380,33.34,159.47,159.42,18.64964886]
[1749680780568,33.34,159.47,159.42,41.64744471]
[1749680780765,33.34,159.47,159.44,0.28432314]
[1749680780967,22.99779585,159.45,159.38,1.5773]
[1749680781271,29.26896103,159.46,159.4,22.99779585]
[1749680781484,43.34,159.47,159.39,18.64964886]
[1749680781485,33.34,159.47,159.41,18.64964886]
[1749680781679,33.34,159.47,159.43,0.28432314]
[1749680781992,56.33779585,159.47,159.43,0.28432314]
[1749680782167,33.34,159.47,159.43,0.28432314]
[1749680782368,33.34,159.47,159.43,19.07613357]
[1749680782584,10.0,159.47,159.43,0.42648471]
[1749680782790,33.54,159.46,159.45,0.28432314]
[1749680783158,33.54,159.46,159.39,26.0]
[1749680783370,33.54,159.46,159.41,0.14216157]
[1749680783585,33.54,159.46,159.43,0.28432314]
[1749680784358,33.54,159.46,159.43,23.28211899]
[1749680784566,22.99779585,159.48,159.43,0.28432314]
[1749680784766,33.62,159.47,159.43,0.28432314]
[1749680784989,33.62,159.47,159.43,42.07392942]
[1749680785287,33.62,159.47,159.44,0.42648471]
[1749680785481,22.99779585,159.52,159.44,0.42648471]
[1749680785680,32.99779585,159.52,159.47,0.28432314]
[1749680785860,33.7,159.51,159.47,23.42428056]
[1749680786058,6.2684804,159.53,159.48,0.28432314]
[1749680786257,33.7,159.5,159.48,0.28432314]
[1749680786786,22.66711977,159.54,159.48,19.07613357]
[1749680786970,22.99779585,159.52,159.48,0.28432314]
[1749680787169,22.99779585,159.49,159.44,67.64744471]
[1749680787366,22.99779585,159.46,159.43,18.79181043]
[1749680787568,56.71779585,159.45,159.39,41.64744471]
[1749680787884,33.72,159.44,159.39,41.64744471]
[1749680788089,33.72,159.44,159.4,22.99779585]
[1749680788987,33.72,159.44,159.41,22.99779585]
[1749680789366,33.72,159.44,159.42,0.28432314]
[1749680789875,33.72,159.44,159.39,18.79181043]
[1749680789876,62.98983006,159.44,159.39,22.99779585]
[1749680790061,62.98983006,159.44,159.39,18.64964886]
[1749680790266,39.99203421,159.44,159.4,0.14216157]
[1749680790485,39.99203421,159.44,159.4,0.28432314]
[1749680790486,22.99779585,159.43,159.4,0.28432314]
[1749680790790,72.98983006,159.44,159.4,0.28432314]
[1749680790970,49.99203421,159.44,159.4,0.28432314]
[1749680791163,72.98983006,159.44,159.4,0.28432314]
[1749680791360,49.99203421,159.44,159.4,0.28432314]
[1749680791591,72.98983006,159.44,159.4,0.28432314]
[1749680791771,72.98983006,159.44,159.22,185.23231187]
[1749680791772,49.99203421,159.44,159.36,44.64964886]
[1749680792088,72.98983006,159.44,159.39,22.99779585]
[1749680792476,22.99779585,159.43,159.37,0.42648471]
[1749680792678,22.99779585,159.43,159.39,0.28432314]
[1749680792876,72.98983006,159.44,159.39,23.28211899]
[1749680793295,62.98983006,159.44,159.39,0.28432314]
[1749680793476,22.99779585,159.43,159.39,0.28432314]
[1749680793668,72.98983006,159.44,159.39,23.28211899]
[1749680793869,16.27124334,159.46,159.4,22.99779585]
[1749680794092,33.86,159.45,159.44,0.28432314]
[1749680794918,32.99779585,159.48,159.44,0.28432314]
[1749680795216,43.86,159.47,159.4,18.79181043]
[1749680795422,43.86,159.47,159.42,22.99779585]
[1749680795590,56.85779585,159.47,159.43,0.28432314]
[1749680795991,10.0,159.51,159.46,22.99779585]
[1749680796230,22.99779585,159.49,159.45,19.07613357]
[1749680796397,22.99779585,159.48,159.45,0.28432314]
[1749680796600,33.98,159.47,159.45,0.28432314]
[1749680797512,33.98,159.47,159.43,41.78960628]
[1749680797714,33.98,159.47,159.44,0.14216157]
[1749680798521,40.25094695,159.47,159.43,41.78960628]
[1749680798896,33.98,159.47,159.43,41.78960628]
[1749680799130,33.98,159.47,159.44,0.14216157]
[1749680803126,33.98,159.47,159.44,23.13995742]
[1749680803331,12.49745844,159.52,159.47,18.933972]
[1749680803626,10.0,159.55,159.51,22.99779585]
[1749680803842,16.0906,159.56,159.51,22.99779585]
[1749680804034,32.99779585,159.58,159.52,23.28211899]
[1749680804329,33.8,159.57,159.54,22.99779585]
[1749680804533,32.99779585,159.58,159.52,0.28432314]
[1749680804722,56.79779585,159.57,159.53,18.64964886]
[1749680805038,56.79779585,159.57,159.52,18.933972]
[1749680805210,33.8,159.57,159.52,23.28211899]
[1749680805413,39.26429044,159.58,159.52,23.28211899]
[1749680805620,10.0,159.6,159.55,23.42428056]
[1749680805808,35.35376187,159.61,159.56,18.64964886]
[1749680806132,33.8,159.6,159.56,41.64744471]
[1749680806324,33.8,159.6,159.57,18.64964886]
[1749680806325,43.8,159.6,159.57,18.64964886]
[1749680806626,33.78,159.59,159.56,18.64964886]
[1749680807148,33.78,159.59,159.57,18.64964886]
[1749680807440,56.77779585,159.59,159.54,22.99779585]
[1749680807603,22.99779585,159.58,159.53,22.99779585]
[1749680807803,22.99779585,159.58,159.52,0.28432314]
[1749680807804,22.99779585,159.57,159.54,18.64964886]
[1749680808031,33.68,159.56,159.54,18.64964886]
[1749680808422,33.68,159.55,159.54,18.64964886]
[1749680809147,33.68,159.55,159.54,19.07613357]
[1749680810020,33.6,159.6,159.56,0.28432314]
[1749680810220,22.99779585,159.59,159.5,26.0]
[1749680810422,22.99779585,159.59,159.54,19.07613357]
[1749680810643,66.59779585,159.6,159.54,42.07392942]
[1749680810837,33.6,159.6,159.55,22.99779585]
[1749680811043,33.6,159.6,159.55,0.42648471]
[1749680811242,33.6,159.6,159.57,22.99779585]
[1749680811442,22.99779585,159.64,159.58,42.07392942]
[1749680811628,33.6,159.63,159.59,22.99779585]
[1749680811831,16.26334302,159.66,159.6,0.42648471]
[1749680812025,6.26334302,159.66,159.61,22.99779585]
[1749680812230,33.58,159.65,159.62,22.99779585]
[1749680812432,29.26076496,159.67,159.62,0.42648471]
[1749680812643,33.56,159.66,159.62,0.42648471]
[1749680812946,16.4097,159.73,159.66,0.42648471]
[1749680813253,16.4097,159.73,159.67,0.28432314]
[1749680813254,22.99779585,159.73,159.67,0.28432314]
[1749680813421,16.4097,159.77,159.7,23.13995742]
[1749680813627,16.25888197,159.78,159.73,22.99779585]
[1749680813923,16.25888197,159.78,159.71,0.28432314]
[1749680813924,33.56,159.77,159.71,0.28432314]
[1749680814233,22.99779585,159.74,159.71,0.28432314]
[1749680814427,22.99779585,159.73,159.71,0.28432314]
[1749680814851,43.56,159.77,159.71,0.28432314]
[1749680815224,33.56,159.77,159.71,0.28432314]
[1749680815425,39.81934908,159.77,159.71,0.28432314]
[1749680815640,22.99779585,159.75,159.71,0.14216157]
[1749680816151,10.0,159.76,159.71,0.14216157]
[1749680816348,22.99779585,159.75,159.71,0.14216157]
[1749680817033,33.56,159.77,159.71,0.14216157]
[1749680817230,22.99779585,159.75,159.71,0.14216157]
[1749680817649,22.99779585,159.74,159.71,0.28432314]
[1749680819332,22.99779585,159.73,159.71,0.28432314]
[1749680819549,29.25896834,159.72,159.62,1.5586]
[1749680819762,29.25896834,159.72,159.62,24.55639585]
[1749680819763,22.99779585,159.67,159.62,24.55639585]
[1749680819942,49.66117249,159.72,159.63,19.07613357]
[1749680820149,22.99779585,159.67,159.62,24.55639585]
[1749680820331,33.4,159.72,159.65,42.07392942]
[1749680820657,33.4,159.72,159.62,1.5586]
[1749680820658,33.34,159.76,159.72,0.14216157]
[1749680820875,22.99779585,159.75,159.72,0.14216157]
[1749680821030,10.0,159.83,159.73,26.0]
[1749680821233,22.99779585,159.8,159.76,0.14216157]
[1749680821448,22.99779585,159.78,159.75,0.28432314]
[1749680821730,10.0,159.81,159.75,0.28432314]
[1749680821957,22.99779585,159.79,159.75,0.28432314]
[1749680822335,43.34,159.82,159.75,0.28432314]
[1749680822536,33.28,159.81,159.77,0.28432314]
[1749680822734,33.28,159.81,159.78,0.14216157]
[1749680822939,22.99779585,159.82,159.77,0.42648471]
[1749680823144,22.99779585,159.83,159.79,0.28432314]
[1749680823341,33.26,159.84,159.8,18.79181043]
[1749680823342,22.99779585,159.84,159.8,18.79181043]
[1749680823858,56.21779585,159.86,159.81,0.28432314]
[1749680824034,22.99779585,159.82,159.8,0.14216157]
[1749680824234,22.99779585,159.81,159.8,0.14216157]
[1749680824458,22.99779585,159.81,159.74,0.28432314]
[1749680824665,22.99779585,159.77,159.74,0.14216157]
[1749680824842,22.99779585,159.76,159.72,18.64964886]
[1749680825051,22.99779585,159.76,159.73,0.14216157]
[1749680825263,22.99779585,159.74,159.68,22.99779585]
[1749680825457,22.99779585,159.72,159.67,22.99779585]
[1749680825758,22.99779585,159.72,159.66,24.54449585]
[1749680825959,22.99779585,159.7,159.66,1.5467]
[1749680826161,43.2,159.74,159.67,19.07613357]
[1749680826162,6.2605647,159.73,159.67,19.07613357]
[1749680826344,6.2605647,159.73,159.67,18.64964886]
[1749680826552,22.99779585,159.71,159.67,18.64964886]
[1749680826737,22.99779585,159.71,159.68,0.42648471]
[1749680826942,6.2597809,159.75,159.67,41.64744471]
[1749680827145,6.2597809,159.75,159.69,0.42648471]
[1749680827146,48.99779585,159.73,159.69,0.42648471]
[1749680827341,22.99779585,159.7,159.63,18.64964886]
[1749680827567,22.99779585,159.7,159.67,0.42648471]
[1749680827746,22.99779585,159.7,159.66,18.64964886]
[1749680827945,42.26075568,159.73,159.66,18.64964886]
[1749680828145,22.99779585,159.71,159.67,0.42648471]
[1749680828367,32.26075568,159.73,159.67,0.42648471]
[1749680828666,26.0,159.73,159.67,0.42648471]
[1749680828973,22.99779585,159.73,159.69,0.42648471]
[1749680829147,22.99779585,159.74,159.69,0.42648471]
[1749680829471,22.99779585,159.73,159.69,0.42648471]
[1749680829652,22.99779585,159.72,159.69,0.42648471]
[1749680830246,22.99779585,159.73,159.69,0.42648471]
[1749680830548,33.14,159.75,159.69,0.42648471]
[1749680830854,22.99779585,159.73,159.69,0.42648471]
[1749680831163,33.14,159.75,159.71,0.42648471]
[1749680831344,22.99779585,159.73,159.71,0.42648471]
[1749680831666,22.99779585,159.74,159.71,0.42648471]
[1749680832268,22.99779585,159.75,159.71,0.42648471]
[1749680832641,32.3344,159.79,159.71,0.42648471]
[1749680832642,32.25824205,159.79,159.73,0.42648471]
[1749680832974,22.99779585,159.74,159.73,0.42648471]
[1749680833156,42.94,159.78,159.73,0.42648471]
[1749680833474,22.99779585,159.75,159.73,0.42648471]
[1749680834568,22.99779585,159.74,159.73,0.42648471]
[1749680835067,55.91779585,159.74,159.7,0.14216157]
[1749680835267,42.92,159.74,159.67,18.64964886]
[1749680835565,22.99779585,159.7,159.65,26.0]
[1749680835867,22.99779585,159.66,159.61,24.54449585]
[1749680836241,22.99779585,159.67,159.61,1.5467]
[1749680836465,10.0,159.69,159.64,18.64964886]
[1749680836665,22.99779585,159.67,159.62,22.99779585]
[1749680836874,22.99779585,159.67,159.63,18.64964886]
[1749680837373,22.99779585,159.67,159.64,0.42648471]
[1749680837576,22.99779585,159.65,159.62,18.64964886]
[1749680837754,16.2621704,159.69,159.63,0.42648471]
[1749680837947,22.99779585,159.68,159.65,0.42648471]
[1749680838275,10.0,159.75,159.68,0.42648471]
[1749680838578,22.99779585,159.75,159.72,0.42648471]
[1749680838755,22.99779585,159.74,159.72,0.42648471]
[1749680838948,22.99779585,159.73,159.72,0.42648471]
[1749680839155,22.99779585,159.73,159.69,0.42648471]
[1749680839460,22.99779585,159.71,159.69,0.42648471]
[1749680839663,22.99779585,159.72,159.69,0.42648471]
[1749680839972,22.99779585,159.72,159.69,19.07613357]
[1749680841056,22.99779585,159.72,159.69,0.42648471]
[1749680841257,57.65779585,159.74,159.69,19.07613357]
[1749680841475,22.99779585,159.72,159.69,19.07613357]
[1749680842479,34.66,159.74,159.69,42.07392942]
[1749680842678,22.99779585,159.75,159.69,19.07613357]
[1749680842850,22.99779585,159.75,159.71,19.07613357]
[1749680843557,57.51779585,159.77,159.73,0.42648471]
[1749680843877,57.51779585,159.77,159.73,19.07613357]
[1749680844072,10.0,159.77,159.73,19.07613357]
[1749680844265,32.99779585,159.77,159.73,19.07613357]
[1749680844665,34.48,159.78,159.73,19.07613357]
[1749680844979,32.99779585,159.77,159.73,19.07613357]
[1749680845158,22.99779585,159.78,159.74,18.64964886]
[1749680845664,10.0,159.77,159.74,18.64964886]
[1749680845866,34.4,159.79,159.74,18.64964886]
[1749680846051,22.99779585,159.78,159.74,18.64964886]
[1749680846373,67.33779585,159.78,159.74,18.64964886]
[1749680846857,34.34,159.78,159.74,18.64964886]
[1749680847058,32.99779585,159.8,159.76,18.64964886]
[1749680847273,67.33779585,159.8,159.76,18.64964886]
[1749680847661,67.33779585,159.8,159.75,23.42428056]
[1749680847662,22.99779585,159.79,159.75,0.42648471]
[1749680847868,22.99779585,159.79,159.75,19.07613357]
[1749680848082,32.99779585,159.79,159.75,0.42648471]
[1749680848263,10.0,159.75,159.68,18.64964886]
[1749680848469,34.26,159.74,159.68,18.64964886]
[1749680848988,22.99779585,159.71,159.68,18.64964886]
[1749680849163,22.99779585,159.7,159.69,0.42648471]
[1749680849363,10.0,159.73,159.69,0.42648471]
[1749680849583,22.99779585,159.7,159.69,0.28432314]
[1749680850061,22.99779585,159.71,159.69,0.28432314]
[1749680850463,10.0,159.73,159.69,0.28432314]
[1749680850666,22.99779585,159.75,159.69,42.07392942]
[1749680850855,22.99779585,159.75,159.69,45.07613357]
[1749680851062,22.99779585,159.71,159.69,45.07613357]
[1749680851398,22.99779585,159.72,159.69,0.14216157]
[1749680851574,10.0,159.74,159.69,0.14216157]
[1749680851883,22.99779585,159.75,159.71,0.14216157]
[1749680852191,22.99779585,159.76,159.72,0.28432314]
[1749680852488,34.16,159.78,159.72,0.28432314]
[1749680852656,22.99779585,159.75,159.72,0.28432314]
[1749680854106,22.99779585,159.73,159.72,0.28432314]
[1749680854666,34.04,159.74,159.71,26.0]
[1749680854979,10.0,159.78,159.72,19.07613357]
[1749680854980,22.99779585,159.76,159.72,19.07613357]
[1749680855181,6.0875,159.82,159.77,19.07613357]
[1749680855492,17.66014646,159.95,159.76,26.0]
[1749680855493,6.4416,159.86,159.82,0.42648471]
[1749680855664,22.99779585,159.85,159.82,0.42648471]
[1749680855864,56.67710944,159.86,159.82,0.42648471]
[1749680856100,56.97779585,159.85,159.82,0.42648471]
[1749680856992,33.98,159.85,159.82,0.42648471]
[1749680857193,22.99779585,159.85,159.82,0.42648471]
[1749680857374,10.0,159.88,159.82,19.07613357]
[1749680857582,22.99779585,159.86,159.82,19.07613357]
[1749680858175,22.99779585,159.85,159.82,19.07613357]
[1749680858595,33.92,159.87,159.82,0.42648471]
[1749680858795,56.89779585,159.87,159.82,23.42428056]
[1749680859094,33.84,159.87,159.83,18.64964886]
[1749680859288,33.82,159.88,159.83,0.42648471]
[1749680859482,22.99779585,159.88,159.85,19.07613357]
[1749680859987,22.99779585,159.86,159.85,0.42648471]
[1749680860490,10.0,159.88,159.85,0.42648471]
[1749680860694,22.99779585,159.87,159.85,0.42648471]
[1749680860891,22.99779585,159.86,159.85,0.42648471]
[1749680861399,6.25510986,159.87,159.82,0.14216157]
[1749680861605,22.99779585,159.85,159.82,0.42648471]
[1749680861902,22.99779585,159.84,159.82,0.42648471]
[1749680862207,56.69779585,159.85,159.82,0.42648471]